Cogmind - Beta 10.2 @@@ ROGUE MODE // 2020.11.03 @ 17:54:59 // Halloween2020/ForbiddenLore Player: Plexion Result: Destroyed by DAS Turret with DAS Cannon Performance ------------- Evolutions (0) 0 Regions Visited (3) 600 Robots Destroyed (20) 100 Value Destroyed (351) 351 Prototype IDs (23) 460 Alien Tech Used (0) 0 Bonus (300) 300 TOTAL SCORE: 1811 Bonus ------- Aligned with FarCom 300 Cogmind --------- Core Integrity 0/250 Matter 162/300 Energy 61/100 System Corruption 0% Temperature Cool (0) Movement Rolling (110) Ox2 Location -10/Exiles Parts ------- > --- POWER (1) -------- (None) > --- PROPULSION (2) --- Armored Wheel Armored Wheel > --- UTILITY (2) ------ High-capacity Storage Unit High-capacity Storage Unit > --- WEAPON (2) ------- Assault Rifle Light Assault Rifle > --- INVENTORY (20) --- Wheel Wheel Armored Wheel Flying Fortress v7 Small Storage Unit High-capacity Matter Pod (193) Cloak of Protection EM Pulse Gun Peak State ------------ > --- POWER ------------ Light Ion Engine > --- PROPULSION ------- Armored Wheel Armored Wheel > --- UTILITY ---------- High-capacity Storage Unit High-capacity Storage Unit > --- WEAPON ----------- EM Pulse Gun Light Assault Rifle > --- INVENTORY -------- Nuclear Core Light Fission Core Wheel Wheel Armored Wheel Armored Wheel Flying Fortress v7 Small Storage Unit High-capacity Matter Pod Cloak of Protection Assault Rifle Light Assault Rifle Grenade Launcher Deploy-a-Sentry Deploy-a-Sentry Deploy-a-Sentry [Rating: 17] Favorites ----------- Power Light Ion Engine Engine Light Ion Engine Propulsion Armored Wheel Treads Light Treads Wheel Armored Wheel Utility High-capacity Storage Unit Storage High-capacity Storage Unit Weapon Assault Rifle Energy Gun EM Pulse Gun Ballistic Gun Assault Rifle Launcher Grenade Launcher Build | -11 -10 -10 -10 ------- Run | Scr Mat Min Exi Slots Evolved . | . . . . Power . | . . . . Propulsion . | . . . . Utility . | . . . . Weapon . | . . . . Parts Attached 22 | 5 8 . 9 Power 2 | 1 1 . . Engine 2 | 1 1 . . Core . | . . . . Reactor . | . . . . Propulsion 6 | 2 3 . 1 Treads 2 | 2 . . . Leg . | . . . . Wheel 4 | . 3 . 1 Hover . | . . . . Flight . | . . . . Utility 4 | 1 2 . 1 Device . | . . . . Storage 4 | 1 2 . 1 Processor . | . . . . Hackware . | . . . . Protection . | . . . . Artifact . | . . . . Weapon 10 | 1 2 . 7 Energy Gun 2 | . . . 2 Energy Cannon . | . . . . Ballistic Gun 6 | 1 2 . 3 Ballistic Cannon . | . . . . Launcher 2 | . . . 2 Special Weapon . | . . . . Impact Weapon . | . . . . Slashing Weapon . | . . . . Piercing Weapon . | . . . . Special Melee Weapon . | . . . . Unidentified Prototypes . | . . . . Parts Lost 7 | . 3 . 4 Power 2 | . 1 . 1 Propulsion 2 | . 1 . 1 Utility . | . . . . Weapon 3 | . 1 . 2 Highest Loss Streak 3 | . 3 . 3 Average Slot Usage (%) 91 | . 83 100 98 Engine 12 | . 13 14 12 Treads 7 | . 16 . . Wheel 19 | . 9 28 27 Storage 27 | . 27 28 28 Energy Gun 3 | . . . 7 Ballistic Gun 18 | . 15 28 19 Naked Turns . | . . . . Heaviest Build 70 | 11 43 42 70 Greatest Support 40 | 40 40 24 24 Greatest Overweight (x) 5 | . 4 1 5 Average Overweight (x) 1 | . 1 1 1 Largest Inventory Capacity 20 | 6 14 14 20 Average Capacity 15 | 5 13 14 17 Most Carried 20 | 4 9 9 20 Average Carried 9 | 3 5 9 14 Final Capacity 20 | 6 14 14 20 Final Carried 11 | 4 9 9 11 Class Distribution -------------------- 72% | Mutant 27% | Hauler-Mutant Dominant Class ---------------- Mutant | -10/Materials Mutant | -10/Mines Hauler-Mutant | -10/Exiles Resources | -11 -10 -10 -10 ----------- Run | Scr Mat Min Exi Matter Collected 618 | 195 321 45 57 Remotely . | . . . . Salvage Created 456 | . 349 102 5 Parts 31 | . 20 11 . Haulers Intercepted . | . . . . Recyclers Shooed 2 | . 2 . . Parts Field Recycled . | . . . . Retrieved Matter . | . . . . Parts Self-Destructed . | . . . . Prevented . | . . . . Kills | -11 -10 -10 -10 ------- Run | Scr Mat Min Exi Combat Hostiles Destroyed 20 | . 10 6 4 Guns 16 | . 10 6 . AOE 4 | . . . 4 Classes Destroyed 3 | . 2 . 1 Swarmer 9 | . 3 6 . Grunt 7 | . 7 . . Assembled 4 | . . . 4 Best Kill Streak 6 | . 3 6 4 Combat Bots Only 6 | . 3 6 4 Max Kills in Single Turn 2 | . 1 2 1 Gunslinging 1 | . . 1 . Exploded 1 | . . . 1 Melee . | . . . . Uniques/NPCs Destroyed 1 | . . . 1 8R-AWN (-10/Exiles) Combat | -11 -10 -10 -10 -------- Run | Scr Mat Min Exi Damage Taken 1289 | . 553 194 542 Core 283 | . 70 22 191 Absorbed by Shields . | . . . . Core Remaining (%) 100 | 100 . . . Volleys Fired 103 | . 66 13 24 Largest 2 | . 2 2 2 Hottest 60 | . 40 40 60 Shots Fired 129 | . 69 26 34 Gun 120 | . 69 26 25 Cannon . | . . . . Launcher 9 | . . . 9 Special . | . . . . Kinetic 111 | . 69 26 16 Thermal . | . . . . Explosive 9 | . . . 9 Electromagnetic 9 | . . . 9 Robot Hit Streak 10 | . 10 6 6 Robot Miss Streak 7 | . 4 7 3 Penetration Max . | . . . . Secondary Targets 4 | . . 4 . Max Gunslinging Chain 1 | . . 1 . Shots Hit Robots 69 | . 43 13 13 Core Hits 36 | . 19 7 10 Critical Hits . | . . . . Critical Kills . | . . . . Critical Parts Destroyed . | . . . . Melee Attacks . | . . . . Impact . | . . . . Slashing . | . . . . Piercing . | . . . . Sneak Attacks . | . . . . Combat Hostiles . | . . . . Follow-up Attacks . | . . . . Damage Inflicted 1154 | . 603 152 399 Guns 816 | . 603 152 61 Cannons . | . . . . Explosions 338 | . . . 338 Melee . | . . . . Ramming . | . . . . Kinetic 813 | . 603 152 58 Thermal . | . . . . Explosive 338 | . . . 338 Electromagnetic 3 | . . . 3 Impact . | . . . . Slashing . | . . . . Piercing . | . . . . Highest Corruption . | . . . . Average Corruption . | . . . . Corruption Purged . | . . . . Overload Shots . | . . . . Overflow Damage 1 | . . . 1 Projectiles . | . . . . Explosions 1 | . . . 1 Melee . | . . . . Knockbacks . | . . . . Impact . | . . . . Kinetic . | . . . . Secondary . | . . . . Self-Inflicted Damage . | . . . . Shots . | . . . . Rammed . | . . . . Targets Rammed . | . . . . Kicked . | . . . . Crushed . | . . . . Highest Temperature 40 | . 2 . 40 Average Temperature 17 | . 2 . 18 Received Heat Transfer 288 | . 288 . . Siege Activations . | . . . . Robots Corrupted . | . . . . Combat Hostiles . | . . . . Parts Fried . | . . . . Impact Corruptions . | . . . . Robots Melted . | . . . . Combat Hostiles . | . . . . Parts Melted . | . . . . Heat Transferred . | . . . . Parts Sabotaged . | . . . . Parts Stolen . | . . . . Parts Stripped . | . . . . Power Chain Reactions . | . . . . Missiles Intercepted . | . . . . Alert | -11 -10 -10 -10 ------- Run | Scr Mat Min Exi Peak Influence 196 | . 145 196 . Initial 56 | . . 56 . Average 73 | . 57 175 . Maximum Alert Level . | . . . . Low Security (%) 100 | 100 100 100 . Level 1 . | . . . . Level 2 . | . . . . Level 3 . | . . . . Level 4 . | . . . . Level 5 . | . . . . High Security . | . . . . Max Security . | . . . . Squads Dispatched 3 | . 3 . . Investigation 1 | . 1 . . Extermination . | . . . . Reinforcement 2 | . 2 . . Assault . | . . . . Garrison . | . . . . Intercept . | . . . . Construction Impeded . | . . . . Haulers Reinforced . | . . . . Stealth | -11 -10 -10 -10 --------- Run | Scr Mat Min Exi Distress Signals 4 | . 4 . . Communications Jammed . | . . . . Distress Signals . | . . . . Times Spotted 49 | . 23 6 20 Peak Tracking Total 9 | . 5 3 9 Tactical Retreats 3 | . . . 3 Traps | -11 -10 -10 -10 ------- Run | Scr Mat Min Exi Traps Triggered 1 | . 1 . . Indirectly . | . . . . Trap Hack Attempts . | . . . . Triggered . | . . . . Disarmed . | . . . . Reprogrammed . | . . . . Reused . | . . . . Traps Extracted . | . . . . Installed . | . . . . Triggered . | . . . . Exploded 3 | . . . 3 Machines | -11 -10 -10 -10 ---------- Run | Scr Mat Min Exi Machines Disabled 5 | . 1 . 4 Max in Single Turn 1 | . 1 . 1 Machines Sabotaged . | . . . . Garrisons Compromised . | . . . . Overloaded Fab Kills . | . . . . Fab Network Shutdowns . | . . . . Hacking | -11 -10 -10 -10 --------- Run | Scr Mat Min Exi Machines Accessed 3 | . 1 . 2 Terminals 1 | . 1 . . Fabricators . | . . . . Repair Stations . | . . . . Recycling Units . | . . . . Scanalyzers . | . . . . Garrison Access . | . . . . Total Hacks 4 | . 2 . 2 Successful 2 | . . . 2 Failed 2 | . 2 . . Catastrophic 1 | . 1 . . Database Lockouts . | . . . . Manual 3 | . 2 . 1 Terminals 2 | . 2 . . Fabricators . | . . . . Repair Stations . | . . . . Recycling Units . | . . . . Scanalyzers . | . . . . Garrison Access . | . . . . Terminal Hacks 2 | . . . 2 Record 1 | . . . 1 EX-Prototype ID Bank 1 | . . . 1 Fabricator Hacks . | . . . . Repair Station Hacks . | . . . . Recycling Unit Hacks . | . . . . Scanalyzer . | . . . . Garrison Access Hacks . | . . . . Unauthorized Hacks . | . . . . Terminals . | . . . . Fabricators . | . . . . Repair Stations . | . . . . Recycling Units . | . . . . Scanalyzers . | . . . . Garrison Access . | . . . . Data Cores Recovered . | . . . . Used . | . . . . Hacking Detections 1 | . 1 . . Full Trace Events . | . . . . Feedback Events . | . . . . Feedback Blocked . | . . . . Robot Schematics Acquired . | . . . . Robots Built . | . . . . Matter . | . . . . Time . | . . . . Total Robot Build Rating . | . . . . Part Schematics Acquired . | . . . . Parts Built . | . . . . Matter . | . . . . Time . | . . . . Total Part Build Rating . | . . . . Parts Repaired . | . . . . Time . | . . . . Parts Recycled . | . . . . Recycled Matter . | . . . . Retrieved Matter . | . . . . Retrieved Components . | . . . . Parts Scanalyzed . | . . . . Part Schematics Acquired . | . . . . Parts Damaged . | . . . . Bothacking | -11 -10 -10 -10 ------------ Run | Scr Mat Min Exi Used RIF Installer . | . . . . Robots Hacked . | . . . . Non-combat . | . . . . Combat . | . . . . Robot Hacks Applied . | . . . . Relay Couplers Released . | . . . . Robots Rewired . | . . . . Allies Hacked . | . . . . Hacks Repelled . | . . . . Allies | -11 -10 -10 -10 -------- Run | Scr Mat Min Exi Total Allies . | . . . . Largest Group . | . . . . Highest-Rated Group . | . . . . Highest-Rated Ally . | . . . . Total Orders . | . . . . Ally Attacks 11 | . . . 11 Total Damage 537 | . . . 537 Kills 1 | . . . 1 Allies Corrupted . | . . . . Allies Melted . | . . . . Turrets Deployed 3 | . . . 3 Intel | -11 -10 -10 -10 ------- Run | Scr Mat Min Exi Robot Analysis Total . | . . . . Derelict Logs Recovered 1 | . . 1 . Drone Launches . | . . . . Drone Recoveries . | . . . . Exploration | -11 -10 -10 -10 ------------- Run | Scr Mat Min Exi Turns Passed 1562 | 73 648 152 689 Spaces Moved 1046 | 46 348 116 536 Core 10 | 10 . . . Treads 160 | 36 124 . . Legs . | . . . . Wheels 876 | . 224 116 536 Hover . | . . . . Flight . | . . . . Fastest Speed 50 | 50 100 100 100 Average Speed 115 | 136 133 100 106 Slowest Speed 200 | 160 200 100 140 Overloaded Moves . | . . . . Propulsion Burnouts . | . . . . Robots Hopped . | . . . . Cave-ins Triggered . | . . . . Exploration Rate (%) 41 | 4 54 39 68 Regions Visited 3 Branch Regions 2 Pre-discovered Areas 3 | . . 2 1 Known Exits Taken . | . . . . Unknown Exits Taken 3 | 1 1 1 . Scrap Searched . | . . . . Spaces Dug 3 | . . . 3 Terrain Destroyed 25 | . . . 25 Melee . | . . . . Projectile . | . . . . AOE 25 | . . . 25 Terrain Rammed . | . . . . Walls Destroyed . | . . . . Machines Disabled . | . . . . Actions | -11 -10 -10 -10 --------- Run | Scr Mat Min Exi Total 1270 | 54 461 128 627 Wait 73 | . 33 . 40 Move 1043 | 45 347 115 536 Hop . | . . . . Pick Up 20 | 4 6 . 10 Fast Attach 7 | 5 2 . . Attach 7 | . 4 . 3 Detach 1 | . 1 . . Swap 8 | . 2 . 6 Drop 8 | . . . 8 Fire 103 | . 66 13 24 Melee . | . . . . Ram . | . . . . Kick . | . . . . Crush . | . . . . Escape Stasis . | . . . . Rewire . | . . . . Trap . | . . . . Miscellaneous . | . . . . Route ------- -11/Scrapyard -10/Materials (discovered 2 exits: [*Mat] / [*Min]) -10/Mines -10/Exiles History --------- Turn | Location | Event 2 | -11/Scrapyard | Met Revision 17 50 | -11/Scrapyard | Discovered new exit (range 14) 74 | -11/Scrapyard | Entered Materials 271 | -10/Materials | Discovered new exit (range 15) 315 | -10/Materials | Build established: Mutant 422 | -10/Materials | Lost 3 parts (1p1n1w) 521 | -10/Materials | Discovered new exit (range 3) 722 | -10/Materials | Entered Mines 800 | -10/Mines | Learned location of Storage (-9) 870 | -10/Mines | Deemed a non-threat by the Exiles lab entrance 870 | -10/Mines | Discovered new exit (range 5) 874 | -10/Mines | Entered Exiles 899 | -10/Exiles | Met 8R-AWN 915 | -10/Exiles | Met EX-HEX 961 | -10/Exiles | Met EX-DEC 983 | -10/Exiles | Learned location of Zion (-6) 1060 | -10/Exiles | Met EX-BIN 1076 | -10/Exiles | Aligned with FarCom system 1077 | -10/Exiles | Given EX-Vault access code 1100 | -10/Exiles | Opened EX-Vault 1107 | -10/Exiles | Found Cloak of Protection 1113 | -10/Exiles | Found Flying Fortress v7 1119 | -10/Exiles | Found Deploy-a-Sentry 1121 | -10/Exiles | Found Deploy-a-Sentry 1123 | -10/Exiles | Found Deploy-a-Sentry 1149 | -10/Exiles | Warned to stay clear of 0b10 Research branches 1347 | -10/Exiles | DAS Turret deployed 1349 | -10/Exiles | DAS Turret deployed 1389 | -10/Exiles | Attacked by the Exiles 1450 | -10/Exiles | Build established: Hauler-Mutant 1500 | -10/Exiles | Core integrity fell below 50% 1502 | -10/Exiles | DAS Turret deployed 1505 | -10/Exiles | Allies destroyed 8R-AWN 1562 | -10/Exiles | Core integrity fell below 20% 1563 | -10/Exiles | Destroyed by DAS Turret with DAS Cannon Last Messages --------------- 01499_ HV Slug penetrates Wall. 01499_ Penetrated by HV Slug. 01499_ HV Slug penetrates Wall. 01500_ Dropped Deploy-a-Sentry. 01501_ Penetrated by HV Slug. 01501_ HV Slug penetrates Machine. 01501_ Penetrated by HV Slug. 01501_ HV Slug penetrates Wall. 01502_ DAS Turret deployed. 01502_ 8R-AWN knocked back. 01504_ Penetrated by HV Slug. 01504_ HV Slug penetrates Wall. 01505_ 8R-AWN destroyed. 01509_ Acquired 50 matter. 01533_ The unstable cave ceiling collapses. 01542_ Arm. Wheel destroyed. 01550_ Lgt. Assault Rifle destroyed. 01550_ Grenade Launcher destroyed. 01558_ The unstable cave ceiling collapses. 01561_ Knocked back. Map ----- +----------------------------------------------------+ | ???????????????????????????????????????#""""""?# | | ?????????????????????????????????????????"###??# | | ???????????????????????????????????????????????# | | ???????????????????????????????????????????????# | | ??????????????????????????????????????????????## | | ??????????????#######?????????????????????????#" | | ######???????#!!! "#?????????????????????????#" | | #""#??????# "#?????????????????????????#" | | ??????# "#?????????????????????????#" | | #????## ""#?????????????#???????????#" | | #####" ""#???????????? ""?????????#" | | ##" ""?????????????" """????????## | | # #"" #??????????????" ?????????# | | ???# % #####?????????"" ?????????#" | | ??????# ##????????"" "#????????#" | | ??????### # #???????? ""?????????#" | | #######; # #?????????" "?????????##" | | # ! """ ####????????# #????????##"" | | #! # ####???### ###?######"" | | #! t ### "" #####X# #"###""""""" | | #! t ##?# """""" " "" | | # !" ""###??## "" """ " | | ####;#####?????#### " " | | ???##?????????????#"" %% | | ??????????????????##### | | ??????????????????????## @ | | ???????????????????????## | | ????????????????????????# | | ???????????????????????? """"" | | ???????????????????????? ###### | | ???????????????????????## ""##????# | | ???????????????????????? """##?????? | | ???????????????????????# """##??????? | | ???????????????????????# ""#???????? | | ???????????????????????#"" ########?? | | ???????????????????????#"""t ## ### | | ???????????????????????#"" "" | | ???????????????????????##"" | | ????????????????????????#"""" | | ????????????????????????## | | ?????????????????????????#" " | | ?????????????????????????#"""" ""## | | ?????????????????????????#"" ""#### | | ??????????????????????????" """"##??# | | ??????????????????????????""" """#??## | | ?????????????????????????## ""##??#! | | ??????????????????????????#"" """##???#" | | ???????????????????????????#""" #?????#" | | ????????????????????????????#"""" ##?????#!! | | ?????????????????????????????## #??????### | +----------------------------------------------------+ Best States ------------- Heat Dissipation 25 Energy Generation 10 Energy Capacity 250 Matter Stores 300 Matter Capacity 300 Sight Range 16 Terrain Scan Density 10 Evasion (%) 50 Recoil Reduction 2 Item Schematics ----------------- None Robot Schematics ------------------ None Fabricated ------------ Nothing Alien Tech Used ----------------- None Achievements -------------- None Challenges ------------ None Game ------ Seed WeaponReflectiveKit Manual? 0 Play Time 00:20:08 Cumulative 123.8 hours Start 2020.11.03 @ 17:32:48 End 2020.11.03 @ 17:54:59 Sessions 1 Manual Loads 0 Difficulty Rogue Special Mode Halloween2020/ForbiddenLore Game No. 158 Rogue 71 Adventurer 87 Explorer 0 Win Type - Total 4 Types 3/0/0/1/0/0/0/0/0 Lore% 54 Gallery% 65 Achievement% 55 Wizard Run 0 Options --------- ASCII 0 Keyboard 1 Movement Vi Keybinds 0 Fullscreen 1 Font 18/Terminus Map View 76x50 Tactical HUD 1 Map Filters NONE Filters NONE Steam 1 RUN: be7d877e-7ed0-4769-aba8-bba9877fb0ea